fUST/lending_fUST_20241125
["ID","MTS","AMOUNT","RATE_DAILY","PERIOD"]
[343284655,1732541448309,-288.182,0.00029042,2]
[343284657,1732541448318,-529.0,0.00029077,2]
[343284659,1732541448327,-1107.0,0.00029077,2]
[343284661,1732541448337,-1333.571,0.00029077,2]
[343284663,1732541448349,-500.0,0.00029173,5]
[343284665,1732541448359,-500.0,0.00029173,5]
[343284667,1732541448368,-671.63,0.0002918,2]
[343284669,1732541448377,-4527.82887351,0.0002918,30]
[343284671,1732541448387,-575.61232686,0.00029183,2]
[343284673,1732541448397,-250000.0,0.00029183,2]
[343284675,1732541448407,-501.3330157,0.00029284,11]
[343284677,1732541448416,-568.11139444,0.00029284,11]
[343284679,1732541448428,-151.0,0.00029289,7]
[343284681,1732541448438,-151.0,0.00029289,7]
[343284683,1732541448447,-151.0,0.00029289,7]
[343284685,1732541448456,-151.0,0.00029289,7]
[343284687,1732541448466,-151.0,0.00029289,7]
[343284689,1732541448475,-151.0,0.00029289,7]
[343284691,1732541448485,-151.0,0.00029289,7]
[343284693,1732541448494,-2644758.99665776,0.00029298,10]
[343284700,1732541448551,-463.60001,0.00029298,10]
[343284702,1732541448563,-266.54277529,0.00029298,10]
[343284706,1732541448589,-150525.4958731,0.00029298,10]
[343284708,1732541448601,-5966.07343446,0.00029298,10]
[343284711,1732541448612,-11311.4856374,0.00029298,10]
[343284713,1732541448622,-6985.21615269,0.00029298,10]
[343284715,1732541448633,-13943.60508014,0.00029298,10]
[343285104,1732541606704,298.8241495,0.00021461,2]
[343285105,1732541621428,182.644028,0.00021187,2]
[343285107,1732541720470,164.007238,0.00013973,2]
[343285108,1732541786673,263.1876127,0.00021657,2]
[343285109,1732541801785,688.904841,0.00021657,2]
[343285123,1732541936601,1008.5750769,0.00021247,2]
[343285124,1732541937109,171.6098085,0.00021247,2]
[343285125,1732542095525,199.0,0.00025,120]
[343285126,1732542172134,1224.0547917,0.00021371,2]
[343285127,1732542190621,250.0,0.00021212,2]
[343285128,1732542350894,24900.0,0.00021202,2]
[343285129,1732542397499,164.007238,0.00013973,2]
[343285156,1732542632257,-160.0,0.00022,2]
[343285157,1732542632267,-294.0,0.00022,2]
[343285158,1732542632277,-528.6899253,0.00022,2]
[343285159,1732542632286,-268.04361047,0.00022191,2]
[343285160,1732542632295,-294.0,0.00022192,2]
[343285161,1732542632304,-300.0,0.00022198,2]
[343285162,1732542632314,-6345.0,0.00022198,2]
[343285163,1732542632323,-500.0,0.00022201,2]
[343285164,1732542632332,-500.0,0.00022201,2]
[343285165,1732542632342,-500.0,0.00022202,2]
[343285166,1732542632351,-500.0,0.00022202,2]
[343285167,1732542632361,-500.0,0.00022202,2]
[343285168,1732542632370,-500.0,0.00022202,2]
[343285169,1732542632379,-500.0,0.00022202,2]
[343285170,1732542632390,-500.0,0.00022202,2]
[343285171,1732542632399,-500.0,0.00022202,2]
[343285172,1732542632408,-500.0,0.00022202,2]
[343285173,1732542632417,-441.46,0.00022202,2]
[343285174,1732542632426,-553.18,0.00022202,2]
[343285175,1732542632435,-500.0,0.00022202,2]
[343285176,1732542632444,-500.0,0.00022202,2]
[343285177,1732542632453,-500.0,0.00022202,2]
[343285178,1732542632462,-500.0,0.00022202,2]
[343285179,1732542632472,-500.0,0.00022202,2]
[343285180,1732542632484,-249.40727326,0.00022202,2]
[343285181,1732542632493,-500.0,0.00022202,2]
[343285182,1732542632502,-500.0,0.00022202,2]
[343285183,1732542632512,-500.0,0.00022202,2]
[343285184,1732542632521,-500.0,0.00022202,2]
[343285185,1732542632530,-500.0,0.00022202,2]
[343285186,1732542632539,-500.0,0.00022202,2]
[343285187,1732542632547,-271.8,0.00022202,2]
[343285188,1732542632557,-500.0,0.00022202,2]
[343285189,1732542632567,-500.0,0.00022202,2]
[343285190,1732542632577,-469.04,0.00022202,2]
[343285191,1732542632586,-500.0,0.00022202,2]
[343285192,1732542632595,-500.0,0.00022202,2]
[343285193,1732542632604,-500.0,0.00022202,2]
[343285194,1732542632613,-617.7,0.00022202,2]
[343285195,1732542632622,-500.0,0.00022202,2]
[343285196,1732542632631,-688.904841,0.00022342,2]
[343285197,1732542632643,-717.7295748,0.00022376,2]
[343285198,1732542632656,-298.59,0.00022475,2]
[343285199,1732542632666,-500.0,0.00022475,2]
[343285200,1732542632681,-500.0,0.00022476,2]
[343285201,1732542632690,-500.0,0.00022476,2]
[343285202,1732542632699,-500.0,0.00022476,2]
[343285203,1732542632708,-524.44,0.00022476,2]
[343285204,1732542632717,-500.0,0.00022476,2]
[343285205,1732542632726,-500.0,0.00022476,2]
[343285206,1732542632736,-399.48,0.00022476,2]
[343285207,1732542632745,-500.0,0.00022476,2]
[343285208,1732542632754,-500.0,0.00022476,2]
[343285209,1732542632767,-500.0,0.00022476,2]
[343285210,1732542632776,-500.0,0.00022476,2]
[343285211,1732542632786,-278.74,0.00022476,2]
[343285212,1732542632795,-500.0,0.00022476,2]
[343285213,1732542632805,-500.0,0.00022476,2]
[343285214,1732542632814,-500.0,0.00022476,2]
[343285215,1732542632824,-378.5,0.00022476,2]
[343285216,1732542632833,-527.93,0.00022476,2]
[343285217,1732542632843,-332.5,0.00022476,2]
[343285218,1732542632852,-515.76,0.00022476,2]
[343285219,1732542632862,-610.43347322,0.0002272,2]
[343285220,1732542632872,-500.0,0.0002272,2]
[343285221,1732542632881,-591.38,0.0002272,2]
[343285222,1732542632900,-500.0,0.0002272,2]
[343285223,1732542632909,-500.0,0.0002272,2]
[343285224,1732542632919,-403.3,0.0002272,2]
[343285225,1732542632929,-500.0,0.0002272,2]
[343285226,1732542632938,-500.0,0.0002272,2]
[343285227,1732542632948,-500.0,0.0002272,2]
[343285228,1732542632957,-500.0,0.0002272,2]
[343285229,1732542632966,-500.0,0.0002272,2]
[343285230,1732542632978,-500.0,0.0002272,2]
[343285231,1732542632988,-500.0,0.0002272,2]
[343285232,1732542632997,-500.0,0.0002272,2]
[343285233,1732542633007,-217.76,0.0002272,2]
[343285234,1732542633016,-500.0,0.0002272,2]
[343285235,1732542633026,-500.0,0.0002272,2]
[343285236,1732542633035,-500.0,0.0002272,2]
[343285237,1732542633044,-500.0,0.0002272,2]
[343285238,1732542633054,-610.26266342,0.0002272,2]
[343285239,1732542633063,-500.0,0.0002272,2]
[343285240,1732542633072,-500.0,0.0002272,2]
[343285241,1732542633082,-500.0,0.0002272,2]
[343285242,1732542633092,-500.0,0.0002272,2]
[343285243,1732542633102,-500.0,0.0002272,2]
[343285244,1732542633112,-500.0,0.0002272,2]
[343285245,1732542633122,-198.32020318,0.0002272,2]
[343285246,1732542633132,-500.47876774,0.00022721,2]
[343285247,1732542633147,-500.0,0.00022749,2]
[343285248,1732542633157,-500.0,0.0002275,2]
[343285249,1732542633167,-500.0,0.0002275,2]
[343285250,1732542633176,-500.0,0.0002275,2]
[343285251,1732542633186,-406.22,0.0002275,2]
[343285252,1732542633197,-500.0,0.0002275,2]
[343285253,1732542633206,-500.0,0.0002275,2]
[343285254,1732542633216,-352.22708674,0.0002275,2]
[343285255,1732542633227,-500.0,0.00022985,2]
[343285256,1732542633238,-500.0,0.00022985,2]
[343285257,1732542633249,-500.0,0.00022985,2]
[343285258,1732542633259,-500.0,0.00022985,2]
[343285259,1732542633268,-444.69494463,0.00022985,2]
[343285260,1732542633278,-500.0,0.00022985,2]
[343285261,1732542633288,-500.0,0.00022985,2]
[343285262,1732542633298,-500.0,0.00022985,2]
[343285263,1732542633308,-500.0,0.00022985,2]
[343285264,1732542633317,-500.0,0.00022985,2]
[343285265,1732542633327,-500.0,0.00022985,2]
[343285266,1732542633336,-424.55225007,0.00022985,2]
[343285267,1732542633346,-500.0,0.00022985,2]
[343285268,1732542633356,-500.0,0.00022985,2]
[343285269,1732542633365,-500.0,0.00022985,2]
[343285270,1732542633375,-500.0,0.00022985,2]
[343285271,1732542633385,-500.0,0.00022985,2]
[343285272,1732542633397,-500.0,0.00022985,2]
[343285273,1732542633407,-500.0,0.00022985,2]
[343285274,1732542633417,-500.0,0.00022985,2]
[343285275,1732542633427,-500.0,0.00022985,2]
[343285276,1732542633437,-500.0,0.00022985,2]
[343285277,1732542633448,-500.0,0.00022985,2]
[343285278,1732542633458,-268.78329909,0.00022985,2]
[343285279,1732542633468,-500.0,0.00022985,2]
[343285280,1732542633478,-500.0,0.00022985,2]
[343285281,1732542633489,-500.0,0.00022985,2]
[343285282,1732542633499,-500.0,0.00022985,2]
[343285283,1732542633509,-500.0,0.00022985,2]
[343285284,1732542633519,-500.0,0.00022985,2]
[343285285,1732542633528,-500.0,0.00022985,2]
[343285286,1732542633538,-500.0,0.00022985,2]
[343285287,1732542633549,-500.0,0.00022985,2]
[343285288,1732542633559,-500.0,0.00022985,2]
[343285289,1732542633569,-450.0,0.00022985,2]
[343285290,1732542633579,-500.0,0.00022985,2]
[343285291,1732542633589,-500.0,0.00022985,2]
[343285292,1732542633705,-500.0,0.00022985,2]
[343285293,1732542633717,-500.0,0.00022985,2]
[343285294,1732542633727,-500.0,0.00022985,2]
[343285295,1732542633738,-500.0,0.00022985,2]
[343285296,1732542633748,-500.0,0.00022985,2]
[343285297,1732542633759,-500.0,0.00022985,2]
[343285298,1732542633769,-500.0,0.00022985,2]
[343285299,1732542633780,-500.0,0.00022985,2]
[343285300,1732542633790,-500.0,0.00022985,2]
[343285301,1732542633801,-500.0,0.00022985,2]
[343285302,1732542633812,-500.0,0.00022985,2]
[343285303,1732542633822,-500.0,0.00022985,2]
[343285304,1732542633833,-500.0,0.00022985,2]
[343285305,1732542633843,-500.0,0.00022985,2]
[343285306,1732542633854,-500.0,0.00022985,2]
[343285307,1732542633865,-500.0,0.00022985,2]
[343285308,1732542633875,-500.0,0.00022985,2]
[343285309,1732542633886,-500.0,0.00022985,2]
[343285310,1732542633896,-500.0,0.00022985,2]
[343285311,1732542633907,-500.0,0.00022985,2]
[343285312,1732542633917,-500.0,0.00022985,2]
[343285313,1732542633928,-500.0,0.00022985,2]
[343285314,1732542633938,-500.0,0.00022985,2]
[343285315,1732542633948,-218.6701139,0.00022985,2]
[343285316,1732542633959,-500.0,0.00022985,2]
[343285317,1732542633969,-500.0,0.00022985,2]
[343285318,1732542633980,-500.0,0.00022985,2]
[343285319,1732542633990,-500.0,0.00022985,2]
[343285320,1732542634000,-500.0,0.00022985,2]
[343285321,1732542634011,-500.0,0.00022985,2]
[343285322,1732542634022,-500.0,0.00022985,2]
[343285323,1732542634032,-500.0,0.00022985,2]
[343285324,1732542634043,-500.0,0.00022985,2]
[343285325,1732542634053,-619.4081552,0.00022985,2]
[343285326,1732542634062,-500.0,0.00022985,2]
[343285327,1732542634072,-219.00178224,0.00022985,2]
[343285328,1732542634082,-500.0,0.00022985,2]
[343285329,1732542634093,-500.0,0.00022985,2]
[343285330,1732542634103,-618.79636505,0.00022985,2]
[343285331,1732542634113,-500.0,0.00022985,2]
[343285332,1732542634123,-500.0,0.00022985,2]
[343285333,1732542634134,-500.0,0.00022985,2]
[343285334,1732542634146,-500.0,0.00022985,2]
[343285335,1732542634157,-499.99999999,0.00022985,2]
[343285336,1732542634167,-500.0,0.00022985,2]
[343285337,1732542634178,-500.0,0.00022985,2]
[343285338,1732542634188,-500.0,0.00022985,2]
[343285339,1732542634198,-500.0,0.00022985,2]
[343285340,1732542634208,-500.0,0.00022985,2]
[343285341,1732542634218,-500.0,0.00022985,2]
[343285342,1732542634228,-500.0,0.00022985,2]
[343285343,1732542634238,-500.0,0.00022985,2]
[343285344,1732542634247,-500.0,0.00022985,2]
[343285345,1732542634257,-500.0,0.00022985,2]
[343285346,1732542634267,-500.0,0.00022985,2]
[343285347,1732542634277,-500.0,0.00022985,2]
[343285348,1732542634288,-500.0,0.00022985,2]
[343285349,1732542634299,-500.0,0.00022985,2]
[343285350,1732542634309,-500.0,0.00022985,2]
[343285351,1732542634320,-500.0,0.00022985,2]
[343285352,1732542634330,-500.0,0.00022985,2]
[343285353,1732542634340,-500.0,0.00022985,2]
[343285354,1732542634350,-500.0,0.00022985,2]
[343285355,1732542634360,-500.0,0.00022985,2]
[343285356,1732542634371,-500.0,0.00022985,2]
[343285357,1732542634380,-500.0,0.00022985,2]
[343285358,1732542634393,-500.0,0.00022985,2]
[343285359,1732542634403,-500.0,0.00022985,2]
[343285360,1732542634413,-500.0,0.00022985,2]
[343285361,1732542634423,-500.0,0.00022985,2]
[343285362,1732542634433,-500.0,0.00022985,2]
[343285363,1732542634443,-500.0,0.00022985,2]
[343285364,1732542634452,-500.0,0.00022985,2]
[343285365,1732542634462,-500.0,0.00022985,2]
[343285366,1732542634472,-500.0,0.00022985,2]
[343285367,1732542634482,-250.0,0.00022985,2]
[343285368,1732542634492,-500.0,0.00022985,2]
[343285369,1732542634503,-500.0,0.00022985,2]
[343285370,1732542634513,-500.0,0.00022985,2]
[343285371,1732542634524,-500.0,0.00022985,2]
[343285372,1732542634534,-500.0,0.00022985,2]
[343285373,1732542634544,-454.97140238,0.00022985,2]
[343285374,1732542634554,-531.62446273,0.00022985,2]
[343285375,1732542634564,-500.0,0.00022985,2]
[343285376,1732542634574,-500.0,0.00022985,2]
[343285377,1732542634583,-500.0,0.00022985,2]
[343285378,1732542634593,-500.0,0.00022985,2]
[343285379,1732542634603,-500.0,0.00022985,2]
[343285380,1732542634612,-500.0,0.00022985,2]
[343285381,1732542634622,-500.0,0.00022985,2]
[343285382,1732542634631,-500.0,0.00022985,2]
[343285383,1732542634645,-500.0,0.00022985,2]
[343285384,1732542634655,-500.0,0.00022985,2]
[343285385,1732542634665,-500.0,0.00022985,2]
[343285386,1732542634675,-500.0,0.00022985,2]
[343285387,1732542634687,-500.0,0.00022985,2]
[343285388,1732542634697,-500.0,0.00022985,2]
[343285389,1732542634707,-500.0,0.00022985,2]
[343285390,1732542634718,-500.0,0.00022985,2]
[343285391,1732542634728,-500.0,0.00022985,2]
[343285392,1732542634738,-500.0,0.00022985,2]
[343285393,1732542634747,-500.0,0.00022985,2]
[343285394,1732542634757,-500.0,0.00022985,2]
[343285395,1732542634768,-500.0,0.00022985,2]
[343285396,1732542634778,-500.0,0.00022985,2]
[343285397,1732542634788,-500.0,0.00022985,2]
[343285398,1732542634797,-500.0,0.00022985,2]
[343285399,1732542634806,-500.0,0.00022985,2]
[343285400,1732542634815,-500.0,0.00022985,2]
[343285401,1732542634824,-500.0,0.00022985,2]
[343285402,1732542634833,-500.0,0.00022985,2]
[343285403,1732542634842,-500.0,0.00022985,2]
[343285404,1732542634852,-500.0,0.00022985,2]
[343285405,1732542634861,-500.0,0.00022985,2]
[343285406,1732542634870,-500.0,0.00022985,2]
[343285407,1732542634879,-500.0,0.00022985,2]
[343285408,1732542634892,-500.0,0.00022985,2]
[343285409,1732542634902,-500.0,0.00022985,2]
[343285410,1732542634912,-500.0,0.00022985,2]
[343285411,1732542634921,-500.0,0.00022985,2]
[343285412,1732542634931,-500.0,0.00022985,2]
[343285413,1732542634940,-500.0,0.00022985,2]
[343285414,1732542634949,-500.0,0.00022985,2]
[343285415,1732542634958,-500.0,0.00022985,2]
[343285416,1732542634967,-500.0,0.00022985,2]
[343285417,1732542634976,-500.0,0.00022985,2]
[343285418,1732542634986,-500.0,0.00022985,2]
[343285419,1732542634996,-500.0,0.00022985,2]
[343285420,1732542635007,-500.0,0.00022985,2]
[343285421,1732542635017,-500.0,0.00022985,2]
[343285422,1732542635026,-500.0,0.00022985,2]
[343285423,1732542635035,-500.0,0.00022985,2]
[343285424,1732542635044,-500.0,0.00022985,2]
[343285425,1732542635054,-500.0,0.00022985,2]
[343285426,1732542635063,-500.0,0.00022985,2]
[343285427,1732542635072,-500.0,0.00022985,2]
[343285428,1732542635081,-200.0,0.00022985,2]
[343285429,1732542635091,-500.0,0.00022994,2]
[343285430,1732542635100,-500.0,0.00022994,2]
[343285431,1732542635109,-196.4,0.00022994,2]
[343285432,1732542635119,-500.0,0.00022994,2]
[343285433,1732542635129,-500.0,0.00022994,2]
[343285434,1732542635143,-500.0,0.00022994,2]
[343285435,1732542635153,-500.0,0.00022994,2]
[343285436,1732542635163,-500.0,0.00022994,2]
[343285437,1732542635172,-500.0,0.00022994,2]
[343285438,1732542635181,-500.0,0.00022994,2]
[343285439,1732542635191,-500.0,0.00022994,2]
[343285440,1732542635200,-500.0,0.00022994,2]
[343285441,1732542635209,-173.48825241,0.00022994,2]
[343285442,1732542635218,-195.02,0.00022994,2]
[343285443,1732542635227,-294.0,0.00023014,2]
[343285444,1732542635237,-500.0,0.00023023,2]
[343285445,1732542635246,-500.0,0.00023024,2]
[343285446,1732542635255,-500.0,0.00023024,2]
[343285447,1732542635264,-500.0,0.00023024,2]
[343285448,1732542635274,-500.0,0.00023024,2]
[343285449,1732542635282,-500.0,0.00023024,2]
[343285450,1732542635291,-688.904841,0.00023027,2]
[343285451,1732542635301,-500.0,0.00023138,2]
[343285452,1732542635310,-607.09751462,0.00023222,2]
[343285453,1732542635319,-500.0,0.00023233,2]
[343285454,1732542635329,-580.35,0.00023258,3]
[343285455,1732542635338,-500.0,0.00023268,2]
[343285456,1732542635347,-500.0,0.00023268,2]
[343285457,1732542635356,-500.0,0.00023268,2]
[343285458,1732542635365,-500.0,0.00023268,2]
[343285459,1732542635374,-500.0,0.00023268,2]
[343285460,1732542635383,-500.0,0.00023268,2]
[343285461,1732542635396,-647.5,0.00023268,2]
[343285462,1732542635405,-500.0,0.00023268,2]
[343285463,1732542635414,-500.0,0.00023268,2]
[343285464,1732542635423,-500.0,0.00023297,2]
[343285465,1732542635432,-500.0,0.00023298,2]
[343285466,1732542635441,-500.0,0.00023298,2]
[343285467,1732542635451,-383.2,0.00023298,2]
[343285468,1732542635460,-500.0,0.00023298,2]
[343285469,1732542635470,-500.0,0.00023298,2]
[343285470,1732542635479,-323.69467503,0.00023306,2]
[343285471,1732542635488,-717.72957479,0.00023358,2]
[343285472,1732542635497,-500.0,0.00023542,2]
[343285473,1732542635507,-500.0,0.00023542,2]
[343285474,1732542635516,-500.0,0.00023542,2]
[343285475,1732542635525,-443.81939621,0.00023542,2]
[343285476,1732542635534,-500.0,0.00023542,2]
[343285477,1732542635543,-500.0,0.00023542,2]
[343285478,1732542635553,-500.0,0.00023542,2]
[343285479,1732542635562,-500.0,0.00023542,2]
[343285480,1732542635571,-500.0,0.00023545,2]
[343285481,1732542635581,-500.0,0.00023571,2]
[343285482,1732542635590,-233.0,0.00023572,2]
[343285483,1732542635599,-500.0,0.00023572,2]
[343285484,1732542635609,-500.0,0.00023572,2]
[343285485,1732542635618,-1000.0,0.00023686,2]
[343285486,1732542635628,-601.15850341,0.0002378,2]
[343285487,1732542635638,-500.0,0.00023816,2]
[343285488,1732542635649,-500.0,0.00023816,2]
[343285489,1732542635659,-500.0,0.00023816,2]
[343285490,1732542635670,-500.0,0.00023816,2]
[343285491,1732542635683,-250.88,0.00023816,2]
[343285492,1732542635694,-500.0,0.00023816,2]
[343285493,1732542635703,-500.0,0.00023845,2]
[343285494,1732542635712,-500.0,0.00023846,2]
[343285495,1732542635722,-500.0,0.00023846,2]
[343285496,1732542635732,-151.944,0.00024021,5]
[343285497,1732542635742,-500.0,0.0002409,2]
[343285498,1732542635752,-500.0,0.0002409,2]
[343285499,1732542635762,-208.36,0.0002409,2]
[343285500,1732542635771,-500.0,0.0002409,2]
[343285501,1732542635780,-500.0,0.0002409,2]
[343285502,1732542635791,-500.0,0.00024119,2]
[343285503,1732542635801,-500.0,0.0002412,2]
[343285504,1732542635810,-500.0,0.0002412,2]
[343285505,1732542635819,-296.0,0.00024164,2]
[343285506,1732542635829,-717.72957479,0.00024341,2]
[343285507,1732542635838,-500.0,0.00024364,2]
[343285508,1732542635848,-500.0,0.00024364,2]
[343285509,1732542635858,-500.0,0.00024364,2]
[343285510,1732542635868,-245.82,0.00024364,2]
[343285511,1732542635877,-500.0,0.00024393,2]
[343285512,1732542635887,-500.0,0.00024393,2]
[343285513,1732542635902,-500.0,0.00024393,2]
[343285514,1732542635914,-420.0,0.00024418,2]
[343285515,1732542635923,-500.0,0.00024638,2]
[343285516,1732542635933,-500.0,0.00024638,2]
[343285517,1732542635943,-500.0,0.00024638,2]
[343285518,1732542635953,-431.54768451,0.00024658,2]
[343285519,1732542635963,-500.0,0.00024667,2]
[343285520,1732542635973,-500.0,0.00024667,2]
[343285521,1732542635982,-500.0,0.00024667,2]
[343285522,1732542635992,-326.9,0.00024912,2]
[343285523,1732542636001,-500.0,0.00024912,2]
[343285524,1732542636010,-500.0,0.00024912,2]
[343285525,1732542636019,-319.35,0.00024941,2]
[343285526,1732542636029,-500.0,0.00024941,2]
[343285527,1732542636038,-500.0,0.00024941,2]
[343285528,1732542636047,-273.0,0.00025,2]
[343285529,1732542636057,-500.0,0.00025186,2]
[343285530,1732542636066,-567.86,0.00025186,2]
[343285531,1732542636075,-500.0,0.00025215,2]
[343285532,1732542636085,-500.0,0.00025215,2]
[343285533,1732542636094,-300.0,0.000253,2]
[343285534,1732542636103,-717.72957479,0.00025323,2]
[343285535,1732542636112,-500.0,0.0002546,2]
[343285536,1732542636121,-500.0,0.00025489,2]
[343285537,1732542636130,-500.0,0.00025489,2]
[343285538,1732542636143,-500.0,0.00025734,2]
[343285539,1732542636152,-500.0,0.00025763,2]
[343285540,1732542636161,-518.08955513,0.00025763,2]
[343285541,1732542636170,-294.0,0.00025775,2]
[343285542,1732542636179,-998.25000088,0.00026,2]
[343285543,1732542636188,-527.55774748,0.00026008,2]
[343285544,1732542636197,-550.18,0.00026037,2]
[343285545,1732542636205,-300.0,0.000263,2]
[343285546,1732542636214,-717.72957479,0.00026306,2]
[343285547,1732542636224,-153.0,0.00026493,2]
[343285548,1732542636233,-212.7413024,0.00026852,2]
[343285549,1732542636243,-587.0,0.0002686,2]
[343285550,1732542636252,-717.72957479,0.00027288,2]
[343285551,1732542636264,-300.0,0.000273,2]
[343285552,1732542636274,-294.0,0.00027386,2]
[343285553,1732542636283,-513.39,0.00027397,2]
[343285554,1732542636292,-310.25259583,0.00027572,2]
[343285555,1732542636302,-294.0,0.00027616,2]
[343285556,1732542636311,-304.7429954,0.00027691,30]
[343285557,1732542636320,-304.7429954,0.00027691,30]
[343285558,1732542636329,-717.72957479,0.00028271,2]
[343285559,1732542636338,-300.0,0.000283,2]
[343285560,1732542636347,-768.48,0.000286,2]
[343285561,1732542636356,-294.0,0.00028997,2]
[343285562,1732542636365,-287.7163651,0.00029044,30]
[343285563,1732542636373,-500.0,0.00029093,2]
[343285564,1732542636382,-245.10147595,0.00029093,2]
[343285565,1732542636395,-263.01437067,0.00029093,2]
[343285566,1732542636404,-247.95590337,0.00029093,2]
[343285567,1732542636413,-250.99791395,0.00029093,2]
[343285568,1732542636504,-4711.442,0.00029094,2]
[343285569,1732542636514,-650.195,0.00029094,2]
[343285570,1732542636523,-671.905305,0.000291,2]
[343285571,1732542636532,-500.0,0.00029134,2]
[343285572,1732542636542,-500.0,0.00029134,2]
[343285573,1732542636551,-915.32391828,0.00029134,2]
[343285574,1732542636560,-529.326,0.00029135,2]
[343285575,1732542636569,-2379.0,0.00029135,2]
[343285576,1732542636579,-1107.0,0.00029135,2]
[343285577,1732542636588,-330.0,0.00029194,2]
[343285578,1732542636597,-153.0,0.00029197,2]
[343285579,1732542636606,-134392.14204482,0.00029198,2]
[343285580,1732542636749,-507.38996363,0.00022201,2]
[343285581,1732542636760,-1071.75576717,0.00029198,2]
[343285591,1732542638344,-6121.08,0.00022201,2]
[343285592,1732542638353,-6121.08,0.00022475,2]
[343285593,1732542638362,-6121.08,0.00022749,2]
[343285594,1732542638371,-6121.08,0.00023023,2]
[343285595,1732542638381,-162.96297189,0.00023138,2]
[343285596,1732542638390,-6121.08,0.00023297,2]
[343285597,1732542638401,-41652.56981677,0.00029198,2]
[343285598,1732542638413,-72883.53237124,0.00029198,2]
[343285599,1732542638422,-658.69091492,0.00029253,2]
[343285600,1732542638430,-717.72957479,0.00029253,2]
[343285601,1732542638439,-535.29,0.00029288,10]
[343285602,1732542638448,-446.08,0.00029288,10]
[343285603,1732542638458,-371.73,0.00029288,10]
[343285604,1732542638470,-309.78,0.00029288,10]
[343285605,1732542638479,-15076.23,0.000293,2]
[343285606,1732542638488,-300.0,0.000293,2]
[343285607,1732542638497,-568.11139444,0.00029308,11]
[343285608,1732542638506,-501.3330157,0.00029308,11]
[343285609,1732542638515,-300.0,0.0002932,25]
[343285610,1732542638525,-170.78253416,0.00029348,2]
[343285611,1732542638534,-151.0,0.00029349,15]
[343285612,1732542638544,-164.007238,0.00029349,2]
[343285613,1732542638553,-198.32020318,0.00029353,2]
[343285614,1732542638562,-200037.62659829,0.00029353,10]
[343285615,1732542638575,-2647461.05339476,0.00029353,10]
[343285616,1732542638586,-29135.19007774,0.00029353,10]
[343285617,1732542638598,-375980.20221291,0.00029353,10]
[343285624,1732542640311,-500.0,0.00022202,2]
[343285625,1732542640320,-810.27166094,0.00023571,2]
[343285626,1732542640331,-1871.85289907,0.00023571,2]
[343285655,1732542643276,-500.0,0.00022201,2]
[343285657,1732542643286,-500.0,0.00022202,2]
[343285659,1732542643295,-500.0,0.00022475,2]
[343285661,1732542643304,-500.0,0.00022476,2]
[343285663,1732542643313,-500.0,0.00022476,2]